Cogmind - Beta 10.2 @@@ ROGUE MODE // 2021.12.01 @ 12:33:11 Player: dan Result: Destroyed by D-53 Grenadier with Mini Grenade Launcher Performance ------------- Evolutions (0) 0 Regions Visited (2) 400 Robots Destroyed (20) 100 Value Destroyed (522) 522 Prototype IDs (0) 0 Alien Tech Used (0) 0 Bonus (79) 79 TOTAL SCORE: 1101 Bonus ------- High Alert Combat Kills 40 Follower Combat Kills 39 Cogmind --------- Core Integrity 0/250 Matter 279/300 Energy 62/100 System Corruption 0% Temperature Cool (9) Movement Walking (150) Ox1 Location -10/Mines Parts ------- > --- POWER (1) -------- (None) > --- PROPULSION (2) --- Aluminum Leg > --- UTILITY (2) ------ Large Storage Unit Weight Redist. System > --- WEAPON (2) ------- Particle Gun Assault Rifle > --- INVENTORY (10) --- Ion Engine Light Treads Light Treads Light Treads Light Treads Aluminum Leg Aluminum Leg Large Storage Unit Grenade Launcher Peak State ------------ > --- POWER ------------ Light Nuclear Core > --- PROPULSION ------- Aluminum Leg Aluminum Leg > --- UTILITY ---------- Large Storage Unit Weight Redist. System > --- WEAPON ----------- Assault Rifle Light Assault Rifle > --- INVENTORY -------- Ion Engine Light Treads Light Treads Light Treads Light Treads Aluminum Leg Aluminum Leg Large Storage Unit Assault Rifle Grenade Launcher [Rating: 11] Favorites ----------- Power Ion Engine Engine Ion Engine Power Core Light Nuclear Core Propulsion Aluminum Leg Treads Light Treads Leg Aluminum Leg Utility Weight Redist. System Device Weight Redist. System Storage Large Storage Unit Weapon Light Assault Rifle Energy Gun Small Laser Ballistic Gun Light Assault Rifle Build | -11 -10 -10 ------- Run | Scr Mat Min Slots Evolved . | . . . Power . | . . . Propulsion . | . . . Utility . | . . . Weapon . | . . . Parts Attached 24 | 6 13 5 Power 3 | 1 1 1 Engine 2 | 1 1 . Core 1 | . . 1 Reactor . | . . . Propulsion 10 | 2 6 2 Treads 1 | . 1 . Leg 9 | 2 5 2 Wheel . | . . . Hover . | . . . Flight . | . . . Utility 4 | 1 3 . Device 1 | . 1 . Storage 3 | 1 2 . Processor . | . . . Hackware . | . . . Protection . | . . . Artifact . | . . . Weapon 7 | 2 3 2 Energy Gun 2 | . 1 1 Energy Cannon . | . . . Ballistic Gun 5 | 2 2 1 Ballistic Cannon . | . . . Launcher . | . . . Special Weapon . | . . . Impact Weapon . | . . . Slashing Weapon . | . . . Piercing Weapon . | . . . Special Melee Weapon . | . . . Unidentified Prototypes . | . . . Parts Lost 7 | . 3 4 Power 1 | . . 1 Propulsion 2 | . 1 1 Utility . | . . . Weapon 4 | . 2 2 Highest Loss Streak 3 | . 3 3 Average Slot Usage (%) 97 | . 97 96 Engine 9 | . 14 . Core 4 | . . 12 Leg 27 | . 26 27 Device 11 | . 10 14 Storage 15 | . 16 14 Ballistic Gun 25 | . 25 25 Naked Turns . | . . . Heaviest Build 24 | 11 24 24 Greatest Support 26 | 20 26 26 Greatest Overweight (x) 1 | . 1 . Average Overweight (x) . | . . . Largest Inventory Capacity 10 | 6 10 10 Average Capacity 9 | 5 9 10 Most Carried 10 | 6 10 10 Average Carried 8 | 3 8 9 Final Capacity 10 | 6 10 10 Final Carried 10 | 6 10 9 Class Distribution -------------------- 80% | Mutant 19% | Scavenger-Mutant Dominant Class ---------------- Mutant | -10/Materials Scavenger-Mutant | -10/Mines Resources | -11 -10 -10 ----------- Run | Scr Mat Min Matter Collected 590 | 204 278 108 Remotely . | . . . Salvage Created 674 | . 509 165 Parts 44 | . 35 9 Haulers Intercepted 2 | . 2 . Recyclers Shooed 1 | . 1 . Parts Field Recycled . | . . . Retrieved Matter . | . . . Parts Self-Destructed . | . . . Prevented . | . . . Kills | -11 -10 -10 ------- Run | Scr Mat Min Combat Hostiles Destroyed 17 | . 13 4 Guns 16 | . 12 4 AOE 1 | . 1 . Classes Destroyed 4 | . 4 . Worker 1 | . 1 . Hauler 2 | . 2 . Swarmer 6 | . 6 . Grunt 11 | . 7 4 Best Kill Streak 5 | . 5 2 Combat Bots Only 5 | . 5 2 Max Kills in Single Turn 1 | . 1 1 Gunslinging . | . . . Exploded 1 | . 1 . Melee . | . . . Uniques/NPCs Destroyed . | . . . Combat | -11 -10 -10 -------- Run | Scr Mat Min Damage Taken 1342 | . 491 851 Core 264 | . 71 193 Absorbed by Shields . | . . . Core Remaining (%) 100 | 100 . . Volleys Fired 87 | . 62 25 Largest 2 | . 2 2 Hottest 85 | . 60 85 Shots Fired 157 | . 112 45 Gun 157 | . 112 45 Cannon . | . . . Launcher . | . . . Special . | . . . Kinetic 154 | . 111 43 Thermal 3 | . 1 2 Explosive . | . . . Electromagnetic . | . . . Robot Hit Streak 14 | . 11 14 Robot Miss Streak 5 | . 4 5 Penetration Max . | . . . Secondary Targets 2 | . 2 . Max Gunslinging Chain 1 | . 1 . Shots Hit Robots 100 | . 69 31 Core Hits 41 | . 27 14 Critical Hits 3 | . 2 1 Critical Kills 2 | . 2 . Critical Parts Destroyed 1 | . . 1 Melee Attacks . | . . . Impact . | . . . Slashing . | . . . Piercing . | . . . Sneak Attacks . | . . . Combat Hostiles . | . . . Follow-up Attacks . | . . . Damage Inflicted 1117 | . 793 324 Guns 885 | . 561 324 Cannons . | . . . Explosions 232 | . 232 . Melee . | . . . Ramming . | . . . Kinetic 854 | . 561 293 Thermal 31 | . . 31 Explosive . | . . . Electromagnetic 232 | . 232 . Impact . | . . . Slashing . | . . . Piercing . | . . . Highest Corruption . | . . . Average Corruption . | . . . Corruption Purged . | . . . Overload Shots . | . . . Overflow Damage . | . . . Projectiles . | . . . Explosions . | . . . Melee . | . . . Knockbacks . | . . . Impact . | . . . Kinetic . | . . . Secondary . | . . . Self-Inflicted Damage . | . . . Shots . | . . . Rammed . | . . . Targets Rammed . | . . . Kicked . | . . . Crushed . | . . . Highest Temperature 75 | . 20 75 Average Temperature 18 | . 8 24 Received Heat Transfer 375 | . 150 225 Siege Activations . | . . . Robots Corrupted . | . . . Combat Hostiles . | . . . Parts Fried 1 | . 1 . Impact Corruptions . | . . . Robots Melted . | . . . Combat Hostiles . | . . . Parts Melted . | . . . Heat Transferred 74 | . . 74 Parts Sabotaged . | . . . Parts Stolen . | . . . Parts Stripped . | . . . Power Chain Reactions . | . . . Missiles Intercepted . | . . . Alert | -11 -10 -10 ------- Run | Scr Mat Min Peak Influence 494 | . 494 278 Initial 120 | . . 120 Average 239 | . 290 215 Maximum Alert Level 2 | . 2 1 Low Security (%) 31 | 100 22 28 Level 1 51 | . 48 71 Level 2 17 | . 28 . Level 3 . | . . . Level 4 . | . . . Level 5 . | . . . High Security . | . . . Max Security . | . . . Squads Dispatched 3 | . 3 . Investigation 2 | . 2 . Extermination . | . . . Reinforcement 1 | . 1 . Assault . | . . . Garrison . | . . . Intercept . | . . . Construction Impeded . | . . . Haulers Reinforced . | . . . Stealth | -11 -10 -10 --------- Run | Scr Mat Min Distress Signals 1 | . 1 . Communications Jammed . | . . . Distress Signals . | . . . Times Spotted 35 | . 22 13 Peak Tracking Total 6 | . 6 3 Tactical Retreats 2 | . 1 1 Traps | -11 -10 -10 ------- Run | Scr Mat Min Traps Triggered . | . . . Indirectly . | . . . Trap Hack Attempts . | . . . Triggered . | . . . Disarmed . | . . . Reprogrammed . | . . . Reused . | . . . Traps Extracted . | . . . Installed . | . . . Triggered . | . . . Machines | -11 -10 -10 ---------- Run | Scr Mat Min Machines Disabled 7 | . 7 . Max in Single Turn 3 | . 3 . Machines Sabotaged . | . . . Garrisons Compromised . | . . . Overloaded Fab Kills . | . . . Fab Network Shutdowns . | . . . Hacking | -11 -10 -10 --------- Run | Scr Mat Min Machines Accessed 3 | . 3 . Terminals 1 | . 1 . Fabricators . | . . . Repair Stations . | . . . Recycling Units 2 | . 2 . Scanalyzers . | . . . Garrison Access . | . . . Total Hacks 4 | . 4 . Successful 3 | . 3 . Failed 1 | . 1 . Catastrophic . | . . . Database Lockouts . | . . . Manual 4 | . 4 . Terminals 2 | . 2 . Fabricators . | . . . Repair Stations . | . . . Recycling Units 2 | . 2 . Scanalyzers . | . . . Garrison Access . | . . . Terminal Hacks 1 | . 1 . Locate Traps 1 | . 1 . Fabricator Hacks . | . . . Repair Station Hacks . | . . . Recycling Unit Hacks . | . . . Scanalyzer . | . . . Garrison Access Hacks . | . . . Unauthorized Hacks 2 | . 2 . Terminals . | . . . Fabricators . | . . . Repair Stations . | . . . Recycling Units 2 | . 2 . Tunnel 2 | . 2 . Scanalyzers . | . . . Garrison Access . | . . . Data Cores Recovered . | . . . Used . | . . . Hacking Detections . | . . . Full Trace Events . | . . . Feedback Events . | . . . Feedback Blocked . | . . . Robot Schematics Acquired . | . . . Robots Built . | . . . Matter . | . . . Time . | . . . Total Robot Build Rating . | . . . Part Schematics Acquired . | . . . Parts Built . | . . . Matter . | . . . Time . | . . . Total Part Build Rating . | . . . Parts Repaired . | . . . Time . | . . . Parts Recycled . | . . . Recycled Matter . | . . . Retrieved Matter . | . . . Retrieved Components . | . . . Parts Scanalyzed . | . . . Part Schematics Acquired . | . . . Parts Damaged . | . . . Bothacking | -11 -10 -10 ------------ Run | Scr Mat Min Used RIF Installer . | . . . Robots Hacked . | . . . Non-combat . | . . . Combat . | . . . Robot Hacks Applied . | . . . Relay Couplers Released . | . . . Robots Rewired . | . . . Allies Hacked . | . . . Hacks Repelled . | . . . Allies | -11 -10 -10 -------- Run | Scr Mat Min Total Allies 1 | . . 1 Largest Group 1 | . . 1 Highest-Rated Group 31 | . . 31 Highest-Rated Ally 31 | . . 31 Total Orders . | . . . Ally Attacks 7 | . . 7 Total Damage 150 | . . 150 Kills 3 | . . 3 Allies Corrupted . | . . . Allies Melted . | . . . Intel | -11 -10 -10 ------- Run | Scr Mat Min Robot Analysis Total . | . . . Derelict Logs Recovered . | . . . Drone Launches . | . . . Drone Recoveries . | . . . Exploration | -11 -10 -10 ------------- Run | Scr Mat Min Turns Passed 780 | 73 466 241 Spaces Moved 408 | 51 223 134 Core 4 | 4 . . Treads . | . . . Legs 404 | 47 223 134 Wheels . | . . . Hover . | . . . Flight . | . . . Fastest Speed 50 | 50 120 120 Average Speed 119 | 114 120 120 Slowest Speed 150 | 120 150 120 Overloaded Moves . | . . . Propulsion Burnouts . | . . . Robots Hopped . | . . . Cave-ins Triggered . | . . . Exploration Rate (%) 28 | 5 48 32 Regions Visited 2 Branch Regions 1 Pre-discovered Areas 3 | . 2 1 Known Exits Taken . | . . . Unknown Exits Taken 2 | 1 1 . Scrap Searched . | . . . Spaces Dug . | . . . Terrain Destroyed . | . . . Melee . | . . . Projectile . | . . . AOE . | . . . Terrain Rammed . | . . . Walls Destroyed . | . . . Machines Disabled . | . . . Actions | -11 -10 -10 --------- Run | Scr Mat Min Total 570 | 62 330 178 Wait 19 | . 11 8 Move 406 | 50 222 134 Hop . | . . . Pick Up 18 | 6 10 2 Fast Attach 12 | 6 5 1 Attach 5 | . 3 2 Detach 1 | . 1 . Swap 7 | . 5 2 Drop 15 | . 11 4 Fire 87 | . 62 25 Melee . | . . . Ram . | . . . Kick . | . . . Crush . | . . . Escape Stasis . | . . . Rewire . | . . . Trap . | . . . Miscellaneous . | . . . Route ------- -11/Scrapyard -10/Materials (discovered 2 exits: [*Min x2]) -10/Mines History --------- Turn | Location | Event 8 | -11/Scrapyard | Discovered new exit (range 15) 74 | -11/Scrapyard | Entered Materials 74 | -10/Materials | Discovered new exit (range 15) 308 | -10/Materials | Build established: Mutant 385 | -10/Materials | Lost 3 parts (1n2w) 421 | -10/Materials | Discovered new exit (range 8) 540 | -10/Materials | Entered Mines 543 | -10/Mines | Met a Derelict bent on vengeance 645 | -10/Mines | Core integrity fell below 50% 654 | -10/Mines | Escorted by a lone wolf Derelict 674 | -10/Mines | Learned location of Storage (-7) 729 | -10/Mines | Assembled infested the area 774 | -10/Mines | Core integrity fell below 20% 781 | -10/Mines | Destroyed by D-53 Grenadier with Mini Grenade Launcher Last Messages --------------- 00723_ 6O-HED(g): "I WILL HAVE VENGEANCE!" 00723_ K-01 Serf collects debris. 00725_ Dropped Sml. Laser. 00725_ Acquired Particle Gun. 00729_ ALERT: Infestation in the mines, dispatching Demolisher response squad. 00730_ K-01 Serf collects debris. 00735_ 6O-HED(g): "VENGEANCE!" 00737_ K-01 Serf collects debris. 00747_ S-10 Pest destroyed. 00748_ K-01 Serf collects debris. 00749_ 6O-HED(g) destroyed. 00752_ WR-8T5(g): "Mission, incomplete...*fzzt*" 00752_ WR-8T5(g) destroyed. 00769_ Lgt. Assault Rifle destroyed. 00775_ The unstable cave ceiling collapses. 00775_ Lgt. Nuclear Core destroyed. 00779_ Aluminum Leg destroyed. 00780_ The unstable cave ceiling collapses. [Achievement: Just Browsing] Map ----- +----------------------------------------------------+ | | | | | | | | | | | | | | | | | | | | | | | | | | | | | ?????????????????????????????????????????????????? | | ?????????????????????????????????????????????????? | | ?????????????????????????????????????????????????? | | ????????????????????####?????????????????????????? | | ???????????????????## #????????????????????????? | | ??????????????????## ????????????????????????? | | ?????????????????## ?###????????????????????? | | ???????????####### # ##???????????????????? | | ??????????? ##??????????????????? | | ???????????? # #??????????????????? | | ?????????????????# ######??????????????? | | ??????????????????# @ d #??????????????? | | ??????????????????# ## #??????????????? | | ?????????????????# ## #??????????????? | | ?????????????????# ### ###????????????? | | ?????????????????## # ##?# ##???????????? | | ??????????????????########### ## ##??????????? | | ???????????????????????????# #??????????? | | ??????????????????????## ??# ##??????????? | | ??????????????????????# # ##??###??????? | | ??????????????????????#= [ % #??# ##?????? | | ???????????????????" % * ### ##????? | | ???????????????????%" = ## #????? | | ????????????????????### #????? | | ??????????????????????### ## # ##????? | | ????????????????????????###?##### #####?????? | | ??????????????????????????????## ##?????????? | | ?????????????????????????????## ##??????????? | | ?????????????????????????????# ##???????????? | | ?????????????????????????##### ##????????????? | | ?????????????????????????# [##?????????????? | | ?????????????????????????# ## #??????????????? | | ?????????????????????????# ###! *#??????????????? | | ?????????????????????????# #?### #??????????????? | | ?????????????????????????# #???#%#??????????????? | | ?????????????????????????# #???# #??????????????? | +----------------------------------------------------+ Best States ------------- Heat Dissipation 25 Energy Generation 14 Energy Capacity 250 Matter Stores 300 Matter Capacity 300 Sight Range 16 Terrain Scan Density 10 Additional Mass Support 6 Evasion (%) 40 Recoil Reduction 1 Item Schematics ----------------- None Robot Schematics ------------------ None Fabricated ------------ Nothing Alien Tech Used ----------------- None Achievements -------------- Just Browsing Challenges ------------ None Game ------ Seed LargeGhostSpear Manual? 0 Play Time 00:13:07 Cumulative 15.2 hours Start 2021.11.29 @ 10:43:14 End 2021.12.01 @ 12:33:11 Sessions 2 Manual Loads 0 Difficulty Rogue Special Mode None Game No. 5 Rogue 5 Adventurer 0 Explorer 0 Win Type - Total 0 Types 0/0/0/0/0/0/0/0/0 Lore% 28 Gallery% 25 Achievement% 27 Wizard Run 0 Options --------- ASCII 1 Keyboard 1 Movement Vi Keybinds 0 Fullscreen 1 Font 12/Terminus Map View 76x56 Tactical HUD 1 Map Filters NONE Filters NONE Steam 0 RUN: 451fbea2-c942-4f26-8790-dbc4b3d4f14c